[Event "Early-Titled-Tuesday-Blitz-March-26-2024"]
[Site "Chess.com"]
[Date "2024.03.26"]
[Round "2"]
[White "Viktoker"]
[Black "ArchibaldCerveza29"]
[Result "1/2-1/2"]
[WhiteElo "2539"]
[BlackElo "2364"]
[TimeControl "180+1"]
[EndTime "8:18:14 PDT"]
[Termination "Game drawn by repetition"]

1. d4 {[%clk 0:02:56.8]} 1... Nf6 {[%clk 0:02:59.7]} 2. c4 {[%clk 0:02:54.6]}
2... g6 {[%clk 0:03:00.1]} 3. Nc3 {[%clk 0:02:53.6]} 3... Bg7 {[%clk 0:03:00.1]}
4. e4 {[%clk 0:02:54.2]} 4... d6 {[%clk 0:02:58.2]} 5. h3 {[%clk 0:02:54.7]}
5... O-O {[%clk 0:02:57]} 6. Nf3 {[%clk 0:02:55.3]} 6... e5 {[%clk 0:02:55.7]}
7. d5 {[%clk 0:02:55.2]} 7... Na6 {[%clk 0:02:56.2]} 8. Be3 {[%clk 0:02:54.7]}
8... Nh5 {[%clk 0:02:33.2]} 9. g3 {[%clk 0:02:52.6]} 9... f5 {[%clk 0:02:30.6]}
10. exf5 {[%clk 0:02:51]} 10... gxf5 {[%clk 0:02:28.7]} 11. Qd2 {[%clk
0:02:51.9]} 11... Nc5 {[%clk 0:02:22]} 12. O-O-O {[%clk 0:02:35.1]} 12... Nf6
{[%clk 0:02:16.5]} 13. Rg1 {[%clk 0:02:31]} 13... Nfe4 {[%clk 0:02:07.8]} 14.
Nxe4 {[%clk 0:02:30.6]} 14... Nxe4 {[%clk 0:02:06.1]} 15. Qc2 {[%clk 0:02:31.1]}
15... Nc5 {[%clk 0:02:04.3]} 16. g4 {[%clk 0:02:27.4]} 16... fxg4 {[%clk
0:01:47.6]} 17. Ng5 {[%clk 0:02:27.7]} 17... Bf5 {[%clk 0:01:47]} 18. Qd2 {[%clk
0:02:18.7]} 18... h6 {[%clk 0:01:13.4]} 19. hxg4 {[%clk 0:02:16.3]} 19... Bg6
{[%clk 0:01:13.7]} 20. Bxc5 {[%clk 0:02:14.6]} 20... Qxg5 {[%clk 0:01:09.2]} 21.
Be3 {[%clk 0:02:13.9]} 21... Qf6 {[%clk 0:01:03.1]} 22. g5 {[%clk 0:02:08.4]}
22... Qf5 {[%clk 0:00:58.5]} 23. Bd3 {[%clk 0:02:08.3]} 23... Qxd3 {[%clk
0:00:58.3]} 24. Qxd3 {[%clk 0:02:09.2]} 24... Bxd3 {[%clk 0:00:58]} 25. Rxd3
{[%clk 0:02:10.1]} 25... h5 {[%clk 0:00:58.6]} 26. Rh1 {[%clk 0:02:06.3]} 26...
e4 {[%clk 0:00:58.7]} 27. Rdd1 {[%clk 0:02:05.5]} 27... Rf5 {[%clk 0:00:37.5]}
28. Rxh5 {[%clk 0:02:05]} 28... a6 {[%clk 0:00:36.1]} 29. Rh4 {[%clk 0:01:53.6]}
29... Re8 {[%clk 0:00:35.3]} 30. Kc2 {[%clk 0:01:43.5]} 30... b5 {[%clk
0:00:31.1]} 31. cxb5 {[%clk 0:01:39.9]} 31... axb5 {[%clk 0:00:32]} 32. a3
{[%clk 0:01:36.7]} 32... Bf8 {[%clk 0:00:19.1]} 33. Kb3 {[%clk 0:01:36.1]} 33...
Be7 {[%clk 0:00:19.2]} 34. Rg4 {[%clk 0:01:34.6]} 34... Bf8 {[%clk 0:00:18.7]}
35. Rh4 {[%clk 0:01:34.5]} 35... Bg7 {[%clk 0:00:18.4]} 36. Rg4 {[%clk
0:01:32.9]} 36... Ree5 {[%clk 0:00:18.9]} 37. Rd2 {[%clk 0:01:30]} 37... Rxd5
{[%clk 0:00:19]} 38. Rxd5 {[%clk 0:01:30.3]} 38... Rxd5 {[%clk 0:00:19.9]} 39.
Rxe4 {[%clk 0:01:31]} 39... Rd3+ {[%clk 0:00:19]} 40. Kc2 {[%clk 0:01:30.8]}
40... Rd5 {[%clk 0:00:19.3]} 41. Re8+ {[%clk 0:01:26.1]} 41... Kf7 {[%clk
0:00:19.5]} 42. Rc8 {[%clk 0:01:27]} 42... c6 {[%clk 0:00:19.5]} 43. b4 {[%clk
0:01:24.3]} 43... Bd4 {[%clk 0:00:15.6]} 44. Bxd4 {[%clk 0:01:14.9]} 44... Rxd4
{[%clk 0:00:16.5]} 45. Rxc6 {[%clk 0:01:15.5]} 45... Kg6 {[%clk 0:00:16.1]} 46.
Kc3 {[%clk 0:01:14.4]} 46... Rd1 {[%clk 0:00:15.3]} 47. Kc2 {[%clk 0:01:14.4]}
47... Rd5 {[%clk 0:00:15]} 48. f4 {[%clk 0:01:13.8]} 48... Kf5 {[%clk
0:00:15.5]} 49. Rb6 {[%clk 0:01:04.8]} 49... Kxf4 {[%clk 0:00:15.5]} 50. g6
{[%clk 0:01:05.3]} 50... Rg5 {[%clk 0:00:15.8]} 51. Rxd6 {[%clk 0:01:02.9]}
51... Ke5 {[%clk 0:00:16.2]} 52. Rb6 {[%clk 0:01:02.9]} 52... Kd4 {[%clk
0:00:16.7]} 53. g7 {[%clk 0:00:59.9]} 53... Rxg7 {[%clk 0:00:16.3]} 54. Rxb5
{[%clk 0:00:59.9]} 54... Kc4 {[%clk 0:00:16.8]} 55. Rc5+ {[%clk 0:00:59.5]}
55... Kd4 {[%clk 0:00:17.5]} 56. Rc7 {[%clk 0:00:59.4]} 56... Rxc7+ {[%clk
0:00:14.1]} 57. Kb3 {[%clk 0:01:00]} 57... Kd5 {[%clk 0:00:13.2]} 58. b5 {[%clk
0:00:59.7]} 58... Kc5 {[%clk 0:00:13.2]} 59. a4 {[%clk 0:01:00.3]} 59... Kb6
{[%clk 0:00:13.7]} 60. Kb4 {[%clk 0:01:00.2]} 60... Rh7 {[%clk 0:00:12.3]} 61.
a5+ {[%clk 0:01:00.5]} 61... Kb7 {[%clk 0:00:12.9]} 62. Kc5 {[%clk 0:00:56]}
62... Rh5+ {[%clk 0:00:13]} 63. Kb4 {[%clk 0:00:55.9]} 63... Rh4+ {[%clk
0:00:13.3]} 64. Kc5 {[%clk 0:00:56.5]} 64... Rh5+ {[%clk 0:00:12]} 65. Kb4
{[%clk 0:00:56.7]} 65... Kc7 {[%clk 0:00:12]} 66. Kc4 {[%clk 0:00:55.9]} 66...
Kd6 {[%clk 0:00:11.9]} 67. a6 {[%clk 0:00:54.8]} 67... Rc5+ {[%clk 0:00:11.4]}
68. Kb4 {[%clk 0:00:55]} 68... Rc1 {[%clk 0:00:11.3]} 69. Ka5 {[%clk 0:00:54.6]}
69... Kc7 {[%clk 0:00:10.8]} 70. b6+ {[%clk 0:00:54.2]} 70... Kb8 {[%clk
0:00:11.5]} 71. Kb5 {[%clk 0:00:54.7]} 71... Rb1+ {[%clk 0:00:11.6]} 72. Kc6
{[%clk 0:00:55.1]} 72... Rc1+ {[%clk 0:00:12.3]} 73. Kb5 {[%clk 0:00:55.4]}
73... Rb1+ {[%clk 0:00:12.8]} 74. Kc6 {[%clk 0:00:55.9]} 74... Rc1+ {[%clk
0:00:12.9]} 75. Kb5 {[%clk 0:00:56.3]} 1/2-1/2

[Event "Early-Titled-Tuesday-Blitz-March-26-2024"]
[Site "Chess.com"]
[Date "2024.03.26"]
[Round "2"]
[White "ploxoi"]
[Black "Stanbad1"]
[Result "0-1"]
[WhiteElo "2406"]
[BlackElo "2651"]
[TimeControl "180+1"]
[EndTime "8:18:15 PDT"]
[Termination "Stanbad1 won by resignation"]

1. d4 {[%clk 0:03:00.9]} 1... Nf6 {[%clk 0:02:59.8]} 2. c4 {[%clk 0:03:01.3]}
2... e6 {[%clk 0:03:00.3]} 3. g3 {[%clk 0:03:01.6]} 3... d5 {[%clk 0:02:59.3]}
4. Nf3 {[%clk 0:03:02]} 4... Bb4+ {[%clk 0:02:59]} 5. Bd2 {[%clk 0:03:02.2]}
5... Be7 {[%clk 0:02:58.8]} 6. Bg2 {[%clk 0:03:02.4]} 6... O-O {[%clk
0:02:58.9]} 7. O-O {[%clk 0:03:02.9]} 7... c6 {[%clk 0:02:59.5]} 8. Qc2 {[%clk
0:03:03.1]} 8... Nbd7 {[%clk 0:02:59.8]} 9. Rd1 {[%clk 0:03:03.7]} 9... a5
{[%clk 0:02:59.5]} 10. Bf4 {[%clk 0:03:02.2]} 10... Nh5 {[%clk 0:02:57.5]} 11.
Bc1 {[%clk 0:03:02.2]} 11... f5 {[%clk 0:02:53.2]} 12. b3 {[%clk 0:03:02.1]}
12... Bd6 {[%clk 0:02:51.6]} 13. Ba3 {[%clk 0:02:59.9]} 13... Bxa3 {[%clk
0:02:51.1]} 14. Nxa3 {[%clk 0:02:59.7]} 14... Qe7 {[%clk 0:02:49.1]} 15. Nb1
{[%clk 0:02:59.3]} 15... Nhf6 {[%clk 0:02:47.2]} 16. Nc3 {[%clk 0:02:58.6]}
16... Ne4 {[%clk 0:02:47]} 17. e3 {[%clk 0:02:56.8]} 17... Kh8 {[%clk
0:02:40.4]} 18. a3 {[%clk 0:02:49]} 18... g5 {[%clk 0:02:31.5]} 19. c5 {[%clk
0:02:47.2]} 19... Ndf6 {[%clk 0:02:09.2]} 20. Ne5 {[%clk 0:02:40.3]} 20... Bd7
{[%clk 0:02:05.5]} 21. b4 {[%clk 0:02:39.1]} 21... Nxc3 {[%clk 0:01:53.2]} 22.
Qxc3 {[%clk 0:02:38.2]} 22... a4 {[%clk 0:01:53.5]} 23. Rab1 {[%clk 0:02:35.2]}
23... f4 {[%clk 0:01:43.1]} 24. exf4 {[%clk 0:02:23]} 24... gxf4 {[%clk
0:01:44]} 25. Re1 {[%clk 0:02:22.4]} 25... Be8 {[%clk 0:01:35.1]} 26. Bf3 {[%clk
0:02:14.5]} 26... Qg7 {[%clk 0:01:31]} 27. Kg2 {[%clk 0:02:10.5]} 27... Bh5
{[%clk 0:01:13.2]} 28. b5 {[%clk 0:02:02.7]} 28... Bxf3+ {[%clk 0:01:12.2]} 29.
Qxf3 {[%clk 0:02:01.8]} 29... Ne4 {[%clk 0:01:04.1]} 30. Rxe4 {[%clk 0:01:26.8]}
30... dxe4 {[%clk 0:01:03.6]} 31. Qxe4 {[%clk 0:01:27.1]} 31... fxg3 {[%clk
0:01:01.6]} 32. hxg3 {[%clk 0:01:25.4]} 32... Rac8 {[%clk 0:00:42]} 33. Rh1
{[%clk 0:01:16.9]} 33... Rf6 {[%clk 0:00:35.8]} 34. Rb1 {[%clk 0:00:37.6]} 34...
Rcf8 {[%clk 0:00:33.8]} 35. Rb2 {[%clk 0:00:35.4]} 35... cxb5 {[%clk 0:00:29.4]}
36. Ng4 {[%clk 0:00:19.1]} 36... Rg6 {[%clk 0:00:20.6]} 37. Ne5 {[%clk
0:00:19.2]} 37... Rgf6 {[%clk 0:00:20.9]} 38. Ng4 {[%clk 0:00:19.4]} 38... R6f7
{[%clk 0:00:20.8]} 39. Ne5 {[%clk 0:00:17.7]} 39... Rc7 {[%clk 0:00:18.4]} 40.
Rxb5 {[%clk 0:00:17.3]} 40... Qf6 {[%clk 0:00:17.6]} 41. Rb2 {[%clk 0:00:16.7]}
41... Qf5 {[%clk 0:00:17.5]} 42. Qxf5 {[%clk 0:00:09.7]} 42... Rxf5 {[%clk
0:00:18.4]} 43. f4 {[%clk 0:00:10.3]} 43... Rf8 {[%clk 0:00:18.2]} 44. Kf3
{[%clk 0:00:10.6]} 44... Kg7 {[%clk 0:00:17.3]} 45. Ke4 {[%clk 0:00:11.1]} 45...
Rd8 {[%clk 0:00:17.9]} 46. Rb6 {[%clk 0:00:10.5]} 46... Kf6 {[%clk 0:00:17.1]}
47. g4 {[%clk 0:00:09.2]} 47... h6 {[%clk 0:00:17.3]} 48. f5 {[%clk 0:00:08.8]}
48... Re7 {[%clk 0:00:16.3]} 49. Kf4 {[%clk 0:00:06.4]} 49... Rxd4+ {[%clk
0:00:15.4]} 50. Ke3 {[%clk 0:00:06.7]} 50... Kxe5 {[%clk 0:00:16.3]} 51. f6
{[%clk 0:00:06.3]} 51... Rf7 {[%clk 0:00:16.2]} 0-1

[Event "Early-Titled-Tuesday-Blitz-March-26-2024"]
[Site "Chess.com"]
[Date "2024.03.26"]
[Round "2"]
[White "yaguigor"]
[Black "Igor_Lysyj"]
[Result "1/2-1/2"]
[WhiteElo "2574"]
[BlackElo "2829"]
[TimeControl "180+1"]
[EndTime "8:18:19 PDT"]
[Termination "Game drawn by repetition"]

1. e4 {[%clk 0:03:00.9]} 1... e5 {[%clk 0:02:59.7]} 2. Nf3 {[%clk 0:03:00.9]}
2... Nc6 {[%clk 0:02:59.6]} 3. Bb5 {[%clk 0:03:00.8]} 3... a6 {[%clk 0:02:59.4]}
4. Ba4 {[%clk 0:03:00.6]} 4... Nf6 {[%clk 0:02:59.3]} 5. O-O {[%clk 0:02:59.8]}
5... Nxe4 {[%clk 0:02:59.3]} 6. d4 {[%clk 0:02:59.2]} 6... b5 {[%clk 0:02:58.9]}
7. Bb3 {[%clk 0:02:58.5]} 7... d5 {[%clk 0:02:58.6]} 8. dxe5 {[%clk 0:02:58.8]}
8... Be6 {[%clk 0:02:58.6]} 9. Nbd2 {[%clk 0:02:57.8]} 9... Be7 {[%clk
0:02:56.3]} 10. c3 {[%clk 0:02:56.7]} 10... Qd7 {[%clk 0:02:55]} 11. Bc2 {[%clk
0:02:55.6]} 11... Bf5 {[%clk 0:02:55.2]} 12. Nb3 {[%clk 0:02:53.8]} 12... Bg6
{[%clk 0:02:52.4]} 13. Nbd4 {[%clk 0:02:51.2]} 13... Nxd4 {[%clk 0:02:48.8]} 14.
cxd4 {[%clk 0:02:50.5]} 14... O-O {[%clk 0:02:42.9]} 15. Be3 {[%clk 0:02:46.5]}
15... f6 {[%clk 0:02:34.6]} 16. exf6 {[%clk 0:02:41]} 16... Bxf6 {[%clk
0:02:34.4]} 17. Ne5 {[%clk 0:02:15.7]} 17... Qe6 {[%clk 0:02:25.1]} 18. f3
{[%clk 0:02:04.6]} 18... Nd6 {[%clk 0:02:24.9]} 19. Bf4 {[%clk 0:01:42.1]} 19...
Bxc2 {[%clk 0:02:14.1]} 20. Qxc2 {[%clk 0:01:40.8]} 20... Nc4 {[%clk 0:02:13.4]}
21. Rfe1 {[%clk 0:01:35.9]} 21... Qb6 {[%clk 0:02:11.5]} 22. Qf2 {[%clk
0:01:31.7]} 22... Rae8 {[%clk 0:01:46.8]} 23. b3 {[%clk 0:01:27.1]} 23... Bxe5
{[%clk 0:01:46.9]} 24. Bxe5 {[%clk 0:01:25.9]} 24... Nxe5 {[%clk 0:01:43.9]} 25.
dxe5 {[%clk 0:01:25.4]} 25... d4 {[%clk 0:01:42.5]} 26. b4 {[%clk 0:01:19.8]}
26... Rd8 {[%clk 0:01:11.1]} 27. Rad1 {[%clk 0:01:14.3]} 27... Rd5 {[%clk
0:01:08.2]} 28. Re4 {[%clk 0:01:11]} 28... Rfd8 {[%clk 0:01:03.8]} 29. e6 {[%clk
0:01:10.3]} 29... Re8 {[%clk 0:01:00]} 30. Rexd4 {[%clk 0:01:02.6]} 30... Rxd4
{[%clk 0:00:57.7]} 31. Qxd4 {[%clk 0:01:01.7]} 31... Qxe6 {[%clk 0:00:47.1]} 32.
a3 {[%clk 0:00:54]} 32... h6 {[%clk 0:00:44]} 33. h4 {[%clk 0:00:53]} 33... Qf5
{[%clk 0:00:39]} 34. Qd5+ {[%clk 0:00:35.7]} 34... Qxd5 {[%clk 0:00:36.6]} 35.
Rxd5 {[%clk 0:00:36.6]} 35... Re3 {[%clk 0:00:36.3]} 36. Rc5 {[%clk 0:00:36.4]}
36... Rxa3 {[%clk 0:00:35.6]} 37. Rxc7 {[%clk 0:00:36.5]} 37... Ra4 {[%clk
0:00:34.1]} 38. Ra7 {[%clk 0:00:35.8]} 38... Rxb4 {[%clk 0:00:33.9]} 39. Rxa6
{[%clk 0:00:35.9]} 39... Rxh4 {[%clk 0:00:33.6]} 40. Rb6 {[%clk 0:00:36.6]}
40... Rb4 {[%clk 0:00:31.8]} 41. Kf2 {[%clk 0:00:35.7]} 41... h5 {[%clk
0:00:30]} 42. g4 {[%clk 0:00:33.1]} 42... hxg4 {[%clk 0:00:19.1]} 43. fxg4
{[%clk 0:00:32.4]} 43... Kf7 {[%clk 0:00:19.5]} 44. g5 {[%clk 0:00:27.3]} 44...
Rf4+ {[%clk 0:00:17.8]} 45. Kg3 {[%clk 0:00:26.2]} 45... Rf5 {[%clk 0:00:18.1]}
46. g6+ {[%clk 0:00:25.9]} 46... Ke7 {[%clk 0:00:17.5]} 47. Kg4 {[%clk
0:00:24.8]} 47... Rc5 {[%clk 0:00:17.5]} 48. Kf4 {[%clk 0:00:24.2]} 48... Rd5
{[%clk 0:00:17.2]} 49. Kg4 {[%clk 0:00:22.5]} 49... Rc5 {[%clk 0:00:15.5]} 50.
Kf4 {[%clk 0:00:22.3]} 50... Rh5 {[%clk 0:00:14.5]} 51. Kg4 {[%clk 0:00:21.1]}
51... Rd5 {[%clk 0:00:13.4]} 52. Kf4 {[%clk 0:00:21.1]} 52... Rc5 {[%clk
0:00:10.4]} 53. Kg4 {[%clk 0:00:21.1]} 53... Rd5 {[%clk 0:00:10.8]} 54. Kf4
{[%clk 0:00:21.1]} 54... Rc5 {[%clk 0:00:11.2]} 55. Kg4 {[%clk 0:00:21.4]} 55...
Rd5 {[%clk 0:00:11.5]} 1/2-1/2

[Event "Early-Titled-Tuesday-Blitz-March-26-2024"]
[Site "Chess.com"]
[Date "2024.03.26"]
[Round "2"]
[White "Predator0608"]
[Black "kai_nov"]
[Result "1-0"]
[WhiteElo "2538"]
[BlackElo "2335"]
[TimeControl "180+1"]
[EndTime "8:18:19 PDT"]
[Termination "Predator0608 won on time"]

1. f4 {[%clk 0:03:00.9]} 1... d5 {[%clk 0:02:57.6]} 2. Nf3 {[%clk 0:03:00.6]}
2... Nf6 {[%clk 0:02:56.6]} 3. g3 {[%clk 0:03:00.9]} 3... Bg4 {[%clk 0:02:54]}
4. Bg2 {[%clk 0:03:01.4]} 4... e6 {[%clk 0:02:53.1]} 5. O-O {[%clk 0:03:01.7]}
5... Bd6 {[%clk 0:02:49.7]} 6. d3 {[%clk 0:03:02.2]} 6... O-O {[%clk 0:02:48]}
7. Qe1 {[%clk 0:03:02.5]} 7... Nbd7 {[%clk 0:02:44.3]} 8. e4 {[%clk 0:03:03]}
8... Bc5+ {[%clk 0:02:42.9]} 9. Kh1 {[%clk 0:03:02.9]} 9... Nb6 {[%clk
0:02:37.3]} 10. e5 {[%clk 0:03:00.6]} 10... Nfd7 {[%clk 0:02:35.1]} 11. h3
{[%clk 0:02:59.5]} 11... Bh5 {[%clk 0:02:27.6]} 12. d4 {[%clk 0:02:58.4]} 12...
Be7 {[%clk 0:02:26]} 13. c3 {[%clk 0:02:58.4]} 13... c5 {[%clk 0:02:21]} 14.
Nbd2 {[%clk 0:02:57.3]} 14... cxd4 {[%clk 0:02:20.5]} 15. Nxd4 {[%clk 0:02:56]}
15... Bg6 {[%clk 0:02:18.1]} 16. g4 {[%clk 0:02:54.5]} 16... Bh4 {[%clk
0:02:12.3]} 17. Qe2 {[%clk 0:02:53.6]} 17... h6 {[%clk 0:01:55.6]} 18. N2f3
{[%clk 0:02:43.9]} 18... Be7 {[%clk 0:01:47]} 19. f5 {[%clk 0:02:42.4]} 19...
exf5 {[%clk 0:01:46]} 20. gxf5 {[%clk 0:02:43.3]} 20... Bh5 {[%clk 0:01:45.4]}
21. e6 {[%clk 0:02:43.6]} 21... Nf6 {[%clk 0:01:39.8]} 22. Bf4 {[%clk
0:02:42.1]} 22... Ne4 {[%clk 0:01:36.4]} 23. Qd3 {[%clk 0:02:37.3]} 23... Bd6
{[%clk 0:01:23.2]} 24. Ne5 {[%clk 0:02:24.4]} 24... f6 {[%clk 0:01:12.4]} 25.
Ng4 {[%clk 0:02:15.8]} 25... Bxf4 {[%clk 0:01:08.4]} 26. Rxf4 {[%clk 0:02:16.7]}
26... Qd6 {[%clk 0:01:05.9]} 27. Raf1 {[%clk 0:02:15.1]} 27... Ng5 {[%clk
0:01:01.4]} 28. Ne3 {[%clk 0:02:06.6]} 28... Rfd8 {[%clk 0:00:54.8]} 29. h4
{[%clk 0:01:41.1]} 29... Ne4 {[%clk 0:00:47.3]} 30. Bxe4 {[%clk 0:01:38.5]}
30... dxe4 {[%clk 0:00:46.4]} 31. Qxe4 {[%clk 0:01:39.4]} 31... Be8 {[%clk
0:00:31.6]} 32. Qxb7 {[%clk 0:01:14.7]} 32... Qe5 {[%clk 0:00:24.3]} 33. Qe4
{[%clk 0:01:11.5]} 33... Rxd4 {[%clk 0:00:17.3]} 34. Qxd4 {[%clk 0:01:06.4]}
34... Bc6+ {[%clk 0:00:16.4]} 35. Kg1 {[%clk 0:01:06.3]} 35... Qb5 {[%clk
0:00:14.4]} 36. c4 {[%clk 0:01:05]} 36... Qb4 {[%clk 0:00:13.3]} 37. Rg4 {[%clk
0:01:03.8]} 37... Qe7 {[%clk 0:00:10.8]} 38. c5 {[%clk 0:01:01]} 38... Rd8
{[%clk 0:00:11.3]} 39. Qb4 {[%clk 0:00:47.9]} 39... Nd5 {[%clk 0:00:11.8]} 40.
Nxd5 {[%clk 0:00:48.1]} 40... Rxd5 {[%clk 0:00:12.2]} 41. Qb8+ {[%clk
0:00:47.3]} 41... Kh7 {[%clk 0:00:12]} 42. b4 {[%clk 0:00:47.8]} 42... Rd2
{[%clk 0:00:11.6]} 43. Qf4 {[%clk 0:00:38.6]} 43... Rxa2 {[%clk 0:00:10.6]} 44.
Qd6 {[%clk 0:00:39.1]} 44... Qb7 {[%clk 0:00:10]} 45. Rf2 {[%clk 0:00:19.2]}
45... Ra1+ {[%clk 0:00:09.5]} 46. Rf1 {[%clk 0:00:19.5]} 46... Ra2 {[%clk
0:00:09.6]} 47. e7 {[%clk 0:00:19.4]} 47... Bb5 {[%clk 0:00:07.2]} 48. Qe6
{[%clk 0:00:16.4]} 48... Bxf1 {[%clk 0:00:06.5]} 49. e8=Q {[%clk 0:00:15.6]}
49... Rg2+ {[%clk 0:00:02.7]} 50. Kh1 {[%clk 0:00:13.2]} 50... Rxg4+ {[%clk
0:00:02]} 51. c6 {[%clk 0:00:13.6]} 1-0

[Event "Early-Titled-Tuesday-Blitz-March-26-2024"]
[Site "Chess.com"]
[Date "2024.03.26"]
[Round "2"]
[White "Sammed_Shete"]
[Black "ernestina08chess"]
[Result "1-0"]
[WhiteElo "2735"]
[BlackElo "2246"]
[TimeControl "180+1"]
[EndTime "8:18:21 PDT"]
[Termination "Sammed_Shete won on time"]

1. e4 {[%clk 0:02:59.8]} 1... c5 {[%clk 0:02:59.3]} 2. Nf3 {[%clk 0:02:58.8]}
2... d6 {[%clk 0:02:59.3]} 3. Bc4 {[%clk 0:02:57.4]} 3... e6 {[%clk 0:02:57.8]}
4. Qe2 {[%clk 0:02:53.9]} 4... Nc6 {[%clk 0:02:54.4]} 5. O-O {[%clk 0:02:51]}
5... Nf6 {[%clk 0:02:53]} 6. e5 {[%clk 0:02:48.5]} 6... dxe5 {[%clk 0:02:50.8]}
7. Nxe5 {[%clk 0:02:49.4]} 7... Nxe5 {[%clk 0:02:49.7]} 8. Qxe5 {[%clk
0:02:50.3]} 8... Be7 {[%clk 0:02:38.2]} 9. Nc3 {[%clk 0:02:47.3]} 9... O-O
{[%clk 0:02:38]} 10. a4 {[%clk 0:02:26]} 10... Bd7 {[%clk 0:02:28.3]} 11. Bb5
{[%clk 0:01:59.9]} 11... a6 {[%clk 0:02:23.2]} 12. Bxd7 {[%clk 0:01:59.4]} 12...
Qxd7 {[%clk 0:02:24.1]} 13. d3 {[%clk 0:01:57.2]} 13... b5 {[%clk 0:02:20.2]}
14. Bf4 {[%clk 0:01:53.1]} 14... Rfd8 {[%clk 0:01:51.3]} 15. h3 {[%clk
0:01:50.5]} 15... Nd5 {[%clk 0:01:45.2]} 16. Nxd5 {[%clk 0:01:47.1]} 16... exd5
{[%clk 0:01:45.3]} 17. axb5 {[%clk 0:01:22.6]} 17... axb5 {[%clk 0:01:43.5]} 18.
Qc7 {[%clk 0:01:17.7]} 18... Qxc7 {[%clk 0:01:32.2]} 19. Bxc7 {[%clk 0:01:18.6]}
19... Rdc8 {[%clk 0:01:32.3]} 20. Be5 {[%clk 0:01:17.9]} 20... f6 {[%clk
0:01:31.1]} 21. Bf4 {[%clk 0:01:17.1]} 21... Kf7 {[%clk 0:01:23.4]} 22. g4
{[%clk 0:01:17.2]} 22... Bd8 {[%clk 0:00:50.8]} 23. Kg2 {[%clk 0:01:10.9]} 23...
Be7 {[%clk 0:00:34.3]} 24. Kf3 {[%clk 0:01:09.9]} 24... g6 {[%clk 0:00:33]} 25.
h4 {[%clk 0:01:05.5]} 25... b4 {[%clk 0:00:25.6]} 26. h5 {[%clk 0:01:01]} 26...
g5 {[%clk 0:00:23.9]} 27. Bg3 {[%clk 0:00:49.2]} 27... h6 {[%clk 0:00:22.1]} 28.
Ke2 {[%clk 0:00:48.8]} 28... c4 {[%clk 0:00:19.9]} 29. Kd2 {[%clk 0:00:45.7]}
29... c3+ {[%clk 0:00:15.9]} 30. bxc3 {[%clk 0:00:45.5]} 30... bxc3+ {[%clk
0:00:16.8]} 31. Ke3 {[%clk 0:00:44.8]} 31... Bc5+ {[%clk 0:00:14.7]} 32. d4
{[%clk 0:00:44.5]} 32... Be7 {[%clk 0:00:14.2]} 33. Kd3 {[%clk 0:00:44.7]} 33...
Rxa1 {[%clk 0:00:09.1]} 34. Rxa1 {[%clk 0:00:44.9]} 34... f5 {[%clk 0:00:04.4]}
35. gxf5 {[%clk 0:00:44.2]} 35... Kf6 {[%clk 0:00:04.3]} 36. Ra6+ {[%clk
0:00:44.7]} 36... Kxf5 {[%clk 0:00:04.8]} 37. Rxh6 {[%clk 0:00:45.4]} 37... Bf6
{[%clk 0:00:03.6]} 38. Rh7 {[%clk 0:00:42.3]} 38... Re8 {[%clk 0:00:02.9]} 39.
Rd7 {[%clk 0:00:40.7]} 39... Rc8 {[%clk 0:00:02.8]} 40. Rxd5+ {[%clk 0:00:40.5]}
40... Kg4 {[%clk 0:00:03.2]} 41. h6 {[%clk 0:00:37.5]} 41... Rh8 {[%clk
0:00:03.7]} 42. Kxc3 {[%clk 0:00:33.7]} 42... Rxh6 {[%clk 0:00:03.7]} 43. Kd3
{[%clk 0:00:34.2]} 43... Rh7 {[%clk 0:00:03.5]} 44. c4 {[%clk 0:00:34.2]} 44...
Rh1 {[%clk 0:00:03.3]} 45. Rd6 {[%clk 0:00:31.6]} 45... Rd1+ {[%clk 0:00:03.5]}
46. Ke4 {[%clk 0:00:32.1]} 46... Bg7 {[%clk 0:00:02.7]} 47. c5 {[%clk
0:00:31.7]} 47... Re1+ {[%clk 0:00:02.6]} 48. Kd5 {[%clk 0:00:31.9]} 48... Rd1
{[%clk 0:00:02.5]} 49. Be5 {[%clk 0:00:32.1]} 49... Bxe5 {[%clk 0:00:02]} 50.
Kxe5 {[%clk 0:00:33]} 50... Kf3 {[%clk 0:00:02.5]} 51. c6 {[%clk 0:00:32.9]}
51... Kxf2 {[%clk 0:00:02.9]} 52. Rd5 {[%clk 0:00:32.3]} 52... g4 {[%clk
0:00:03]} 53. c7 {[%clk 0:00:32.3]} 53... Re1+ {[%clk 0:00:02.3]} 54. Kf4 {[%clk
0:00:32.7]} 54... g3 {[%clk 0:00:01.7]} 55. c8=Q {[%clk 0:00:32.2]} 55... g2
{[%clk 0:00:02.4]} 56. Rg5 {[%clk 0:00:31.3]} 1-0